bitfinex-derivatives/quotes_ETHF0:USTF0_20250919
["timestamp","ask_amount","ask_price","bid_price","bid_amount"]
[1758261599674,0.221,4543.3,4543.0,0.8251]
[1758261599873,1.06959454,4543.1,4543.0,0.8251]
[1758261600876,1.13059454,4543.1,4543.0,0.8251]
[1758261601080,0.061,4543.1,4543.0,0.8251]
[1758261601375,0.221,4543.3,4543.0,0.8251]
[1758261601771,0.221,4543.3,4543.2,0.3123]
[1758261601976,3.4288,4543.8,4543.6,0.3123]
[1758261602173,0.5191534,4543.7,4543.6,0.7045]
[1758261602376,3.4288,4543.8,4543.7,0.3123]
[1758261602575,3.4288,4543.8,4543.7,0.7045]
[1758261602774,3.2078,4543.8,4543.7,0.7045]
[1758261603172,3.2078,4543.8,4543.7,4.7045]
[1758261604084,4.27739454,4543.8,4543.7,4.7045]
[1758261604374,4.43749454,4543.8,4543.7,0.5107]
[1758261604775,0.1601,4543.2,4543.1,0.3123]
[1758261605079,4.43749454,4543.2,4543.1,0.3123]
[1758261605274,4.39939454,4543.2,4543.1,0.5107]
[1758261605481,4.39939454,4543.2,4543.1,0.3123]
[1758261605482,4.43749454,4543.2,4543.1,0.3123]
[1758261605676,4.65849454,4543.2,4543.1,0.3123]
[1758261606174,4.65849454,4543.2,4543.1,0.7045]
[1758261606175,3.5508,4543.2,4543.1,0.7045]
[1758261606371,3.2078,4543.8,4543.7,0.1984]
[1758261606575,4.49839454,4543.8,4543.7,0.7045]
[1758261607279,3.2078,4543.8,4543.7,0.7045]
[1758261608478,3.3298,4543.8,4543.7,0.7045]
[1758261608680,3.3679,4543.8,4543.7,0.3123]
[1758261608878,3.3298,4543.8,4543.7,0.5107]
[1758261609075,3.3679,4543.8,4543.7,0.3123]
[1758261609279,0.1601,4543.6,4543.5,0.3343]
[1758261609485,1.45069454,4543.6,4543.5,0.022]
[1758261610075,0.343,4543.6,4543.5,0.8471]
[1758261610280,1.41259454,4543.6,4543.5,0.8471]
[1758261611179,1.45069454,4543.6,4543.5,0.4549]
[1758261611379,2.52028908,4543.6,4543.5,0.022]
[1758261611981,0.1601,4543.1,4543.0,0.3123]
[1758261612288,0.061,4542.7,4542.6,0.3123]
[1758261612481,4.39939454,4542.7,4542.6,0.7045]
[1758261612682,3.2078,4542.7,4542.6,0.7045]
[1758261614685,0.122,4543.1,4543.0,0.1206]
[1758261614886,1.19159454,4543.1,4543.0,0.4329]
[1758261615084,1.19159454,4543.1,4543.0,0.6313]
[1758261615489,1.22969454,4543.1,4543.0,0.4329]
[1758261615983,1.19159454,4543.1,4543.0,0.6313]
[1758261617884,1.22969454,4543.1,4543.0,0.3123]
[1758261618085,0.1601,4542.9,4542.8,0.3343]
[1758261618489,0.122,4542.9,4542.8,0.5327]
[1758261619884,0.1601,4542.9,4542.8,0.3343]
[1758261620080,0.1601,4542.9,4542.8,0.3123]
[1758261620284,0.122,4542.7,4542.5,0.1236]
[1758261620488,0.1601,4542.7,4542.6,0.3123]
[1758261620692,1.45069454,4542.7,4542.6,0.3123]
[1758261623589,1.41259454,4542.7,4542.6,0.3123]
[1758261623791,0.221,4542.7,4542.6,0.7045]
[1758261623991,1.29059454,4542.7,4542.6,0.7045]
[1758261624198,1.35159454,4542.7,4542.6,0.7045]
[1758261624395,1.41259454,4542.7,4542.6,0.7045]
[1758261624693,1.06959454,4542.7,4542.6,0.3922]
[1758261624896,1.19159454,4542.7,4542.6,0.3922]
[1758261625098,1.19159454,4542.7,4542.6,0.7045]
[1758261625797,0.221,4542.8,4542.7,0.3123]
[1758261625998,1.41259454,4542.8,4542.7,0.7045]
[1758261626192,1.93099516,4542.8,4542.7,0.7045]
[1758261626391,1.41259454,4542.8,4542.7,0.7045]
[1758261626696,1.35259454,4542.8,4542.7,0.7045]
[1758261627192,1.41359454,4542.8,4542.7,0.5107]
[1758261627396,1.41359454,4542.8,4542.7,0.7045]
[1758261627600,1.41359454,4542.8,4542.7,0.5107]
[1758261628592,1.41359454,4542.8,4542.7,0.7117]
[1758261629294,1.29159454,4542.8,4542.7,0.3994]
[1758261629702,1.29159454,4542.8,4542.7,0.6915]
[1758261630196,1.29159454,4542.8,4542.7,0.3994]
[1758261630495,1.29159454,4542.8,4542.7,0.6915]
[1758261630697,1.41359454,4542.8,4542.7,0.6915]
[1758261630901,1.29159454,4542.8,4542.7,0.6915]
[1758261631099,3.2078,4543.0,4542.7,0.6915]
[1758261631291,0.222,4542.9,4542.8,0.6871]
[1758261631494,1.29159454,4542.9,4542.8,0.6871]
[1758261631891,1.35259454,4542.9,4542.8,0.6871]
[1758261632096,1.29159454,4542.9,4542.8,0.6871]
[1758261632295,1.35259454,4542.9,4542.8,0.6871]
[1758261632597,1.41359454,4542.9,4542.8,0.6871]
[1758261635301,1.41359454,4542.9,4542.8,0.4861]
[1758261635496,1.45169454,4542.9,4542.8,0.2921]
[1758261636599,1.41359454,4542.9,4542.8,0.2921]
[1758261636894,1.41359454,4542.9,4542.8,0.4861]
[1758261638702,1.45169454,4542.9,4542.8,0.2921]
[1758261639392,1.97172708,4542.9,4542.8,0.2921]
[1758261639601,2.19188707,4542.9,4542.8,0.2921]
[1758261639801,2.19188707,4542.9,4542.5,0.1236]
[1758261640000,0.1601,4542.7,4542.6,0.2921]
[1758261640199,2.19186793,4542.7,4542.6,0.2921]
[1758261641504,2.15376793,4542.7,4542.6,0.6871]
[1758261642696,0.122,4542.5,4542.1,0.2921]
[1758261642896,5.46898908,4542.2,4542.1,0.4861]
[1758261643102,5.36156793,4542.2,4542.1,0.4861]
[1758261643303,6.43116247,4542.2,4542.1,0.4861]
[1758261644506,6.43116247,4542.2,4542.1,0.6871]
[1758261644507,5.36156793,4542.2,4542.1,0.6871]
[1758261645408,4.62139454,4542.2,4542.1,0.6871]
[1758261647220,4.62139454,4542.2,4542.1,0.4861]
[1758261647520,5.72908908,4542.2,4542.1,0.2921]
[1758261648315,5.69098908,4542.2,4542.1,0.2921]
[1758261648621,4.62139454,4542.2,4542.1,0.4861]
[1758261649522,4.65949454,4542.2,4542.1,0.2921]
[1758261649714,5.17973124,4542.2,4542.1,0.2921]
[1758261650023,6.46945233,4542.2,4542.1,0.2921]
[1758261652322,6.24932578,4542.2,4542.1,0.2921]
[1758261655126,6.21122578,4542.2,4542.1,0.2921]
[1758261655326,6.21122578,4542.2,4542.1,0.4861]
[1758261655721,4.0720367,4542.2,4542.1,0.6871]
[1758261656027,6.21122578,4542.2,4542.1,0.6871]
[1758261656623,5.08013124,4542.2,4542.1,0.6871]
[1758261656827,5.14063124,4542.2,4542.1,0.6871]
[1758261657022,5.14063124,4542.2,4542.1,0.4861]
[1758261657226,6.21022578,4542.2,4542.1,0.4861]
[1758261657422,6.24802578,4542.2,4542.1,0.4861]
[1758261657618,6.21022578,4542.2,4542.1,0.6804]
[1758261657823,5.31913502,4542.2,4542.1,0.6804]
[1758261658221,5.37963502,4542.2,4542.1,0.6804]
[1758261658529,4.34421751,4542.2,4542.1,0.6804]
[1758261660125,4.12221751,4542.2,4542.1,0.6804]
[1758261660327,4.34421751,4542.2,4542.1,0.6804]
[1758261661331,3.2078,4542.2,4542.1,0.6804]
[1758261661631,4.12221751,4542.2,4542.1,0.6804]
[1758261662230,3.2078,4542.2,4542.1,0.6804]
[1758261662430,4.12221751,4542.2,4542.1,0.6804]
[1758261664834,9.36321751,4542.2,4542.1,0.6804]
[1758261665029,9.42431751,4542.2,4542.1,0.6804]
[1758261665632,8.4488,4542.2,4542.1,1.81497751]
[1758261665829,8.4488,4542.2,4542.1,0.6804]
[1758261667838,8.571,4542.2,4542.1,0.6804]
[1758261668033,8.6092,4542.2,4542.1,0.4861]
[1758261668234,8.571,4542.2,4542.1,0.4861]
[1758261668935,8.571,4542.2,4542.1,0.2921]
[1758261668936,4.24441751,4542.2,4542.1,0.2921]
[1758261669140,4.28261751,4542.2,4542.1,0.2921]
[1758261669441,3.3682,4542.2,4542.1,0.2921]
[1758261669931,3.33,4542.2,4542.1,0.6896]
[1758261672639,3.33,4542.2,4542.1,0.489]
[1758261673234,3.3682,4542.2,4542.1,0.489]
[1758261674040,3.3682,4542.2,4542.1,0.2921]
[1758261674537,0.1604,4541.9,4541.8,0.2955]
[1758261674742,6.31581751,4541.9,4541.8,0.2955]
[1758261674940,6.27761751,4541.9,4541.8,0.4924]
[1758261676342,0.1604,4541.5,4541.4,0.022]
[1758261676543,0.1222,4541.5,4541.4,0.4195]
[1758261676748,0.1222,4541.5,4541.4,0.3975]
[1758261677036,0.1222,4541.5,4541.4,0.693]
[1758261677237,0.1222,4541.5,4541.1,0.2955]
[1758261677238,0.1222,4541.2,4541.1,0.2955]
[1758261677446,1.07481751,4541.2,4541.1,0.2955]
[1758261678443,1.03661751,4541.2,4541.1,0.4924]
[1758261679447,1.07481751,4541.2,4541.1,0.2955]
[1758261680344,0.1222,4540.7,4540.6,0.4924]
[1758261680650,1.03661751,4540.7,4540.6,0.4924]
[1758261681442,0.1604,4540.6,4540.5,0.4367]
[1758261682546,3.3682,4540.6,4540.5,0.022]
[1758261682746,4.28261751,4540.6,4540.5,0.022]
[1758261683039,4.11464178,4540.6,4540.5,0.022]
[1758261683244,4.11464178,4540.6,4540.0,0.2955]
[1758261683245,0.1604,4540.1,4540.0,0.2955]
[1758261683437,0.1604,4540.1,4540.0,0.415]
[1758261683438,5.38083502,4540.1,4540.0,0.415]
[1758261683638,5.41903502,4540.1,4540.0,0.415]
[1758261684343,5.41903502,4540.1,4540.0,0.2955]
[1758261686244,9.47889502,4540.1,4539.5,0.1195]
[1758261686448,0.1604,4539.1,4539.0,0.415]
[1758261686649,2.21123502,4539.1,4539.0,0.415]
[1758261687051,0.0382,4539.0,4538.5,0.1195]
[1758261687245,4.28261751,4538.6,4538.5,0.1195]
[1758261687440,4.50461751,4538.6,4538.5,0.1195]
[1758261687650,0.1604,4538.1,4538.0,0.1195]
[1758261687854,0.1222,4537.7,4537.5,0.1195]
[1758261688048,1.25861751,4537.6,4537.5,0.6119]
[1758261688349,4.46641751,4537.6,4537.5,0.6119]
[1758261689452,4.50471751,4537.6,4537.5,0.415]
[1758261689849,0.0613,4537.1,4537.0,0.1195]
[1758261690053,5.41953502,4537.1,4537.0,0.4133]
[1758261690951,5.41953502,4537.1,4536.6,0.2938]
[1758261691249,0.1226,4536.6,4536.5,0.625]
[1758261691553,3.5907,4536.6,4536.5,0.4133]
[1758261692451,0.1226,4536.2,4536.1,0.2938]
[1758261692650,1.25901751,4536.2,4536.1,0.5055]
[1758261693042,2.17343502,4536.2,4536.1,0.5055]
[1758261693746,2.17343502,4536.2,4536.1,0.2938]
[1758261693747,2.21173502,4536.2,4536.1,0.2938]
[1758261694850,0.0383,4536.1,4536.0,0.4353]
[1758261695056,3.4298,4536.1,4536.0,0.8413]
[1758261695554,4.34421751,4536.1,4536.0,0.8193]
[1758261695755,4.40551751,4536.1,4536.0,0.8193]
[1758261695949,5.38123502,4536.1,4536.0,0.625]
[1758261696150,5.15923502,4536.1,4536.0,0.625]
[1758261696351,5.38123502,4536.1,4536.0,0.625]
[1758261696855,5.41953502,4536.1,4536.0,0.4133]
[1758261697453,5.41953502,4536.1,4536.0,0.2938]
[1758261697652,5.41953502,4536.1,4536.0,0.4129]
[1758261698945,5.41953502,4536.1,4535.0,0.1191]
[1758261698946,0.0613,4535.6,4535.3,0.7347803]
[1758261699151,1.25901751,4535.6,4535.5,0.6246]
[1758261699352,1.26001751,4535.6,4535.5,0.8189]
[1758261699751,1.03701751,4535.6,4535.5,0.8189]
[1758261699946,0.1226,4535.6,4535.5,0.8189]
[1758261700152,1.26001751,4535.6,4535.5,0.8189]
[1758261700757,1.03701751,4535.6,4535.5,0.8189]
[1758261700957,1.26001751,4535.6,4535.5,0.8189]
[1758261701353,1.03701751,4535.6,4535.5,0.8189]
[1758261701558,1.26001751,4535.6,4535.5,0.8189]
[1758261701858,2.60091751,4535.6,4535.5,0.8189]
[1758261702059,1.3409,4535.6,4535.5,0.8189]
[1758261705454,1.4022,4535.6,4535.5,0.8189]
[1758261705761,2.25531751,4535.6,4535.5,0.8189]
[1758261708854,1.3409,4535.6,4535.5,5.73331751]
[1758261709059,1.3189,4535.6,4535.5,5.73331751]
[1758261709256,3.2078,4536.1,4535.5,5.43951751]
[1758261709449,3.2078,4536.1,4536.0,0.5251]
[1758261709661,3.2078,4536.1,4536.0,0.8189]
[1758261711363,4.3022,4536.1,4536.0,0.8189]
[1758261713054,1.0944,4536.1,4536.0,0.8189]
[1758261713363,1.0331,4536.1,4536.0,1.73331751]
[1758261714158,1.26066965,4536.1,4536.0,1.73331751]
[1758261714355,1.77713084,4536.1,4536.0,0.8189]
[1758261714755,1.0331,4536.1,4536.0,1.73331751]
[1758261715468,1.55025229,4536.1,4536.0,1.73331751]
[1758261716163,1.0331,4536.1,4536.0,6.64773502]
[1758261716470,1.024,4536.5,4536.4,0.4181]
[1758261716658,1.024,4536.5,4536.4,4.97911751]
[1758261716862,1.024,4536.5,4536.4,8.97911751]
[1758261717256,0.5097,4537.1,4537.0,0.4181]
[1758261717462,1.23891305,4537.1,4537.0,1.77131751]
[1758261717757,1.23891305,4537.1,4537.0,0.8569]
[1758261718468,1.23891305,4537.1,4537.0,0.6411]
[1758261718765,1.44411305,4537.1,4537.0,0.6411]
[1758261720469,0.7316185,4537.1,4537.0,1.92897789]
[1758261720668,0.5290185,4537.1,4537.0,1.92897789]
[1758261720969,0.3071,4537.1,4537.0,1.92897789]
[1758261721867,0.3004,4537.4,4537.3,0.6117]
[1758261722069,1.5025,4537.5,4537.3,2.08587789]
[1758261722374,1.5025,4537.5,4537.4,3.8195]
[1758261722375,1.8029,4537.5,4537.4,3.8195]
[1758261723169,2.3331,4537.5,4537.4,3.6034]
[1758261724163,0.8306,4537.5,4537.4,3.2078]
[1758261724366,0.8306,4537.5,4537.4,3.4047]
[1758261724774,0.8306,4537.5,4537.4,3.8195]
[1758261725372,0.3004,4537.5,4537.4,3.8195]
[1758261726169,0.3004,4537.5,4537.4,3.8264]
[1758261726170,0.8306,4537.5,4537.4,3.8264]
[1758261726370,0.8306,4537.5,4537.4,3.6277]
[1758261726572,0.8306,4537.5,4537.4,3.2078]
[1758261726772,0.8306,4537.5,4537.2,0.223]
[1758261726965,0.1225,4537.0,4536.9,0.1969]
[1758261727169,0.8306,4537.0,4536.9,0.4199]
[1758261727373,0.8306,4537.0,4536.9,0.3956]
[1758261727573,0.6254,4537.0,4536.9,1.90647789]
[1758261727773,0.3004,4537.0,4536.9,1.90647789]
[1758261727971,1.307,4537.3,4537.2,0.1969]
[1758261728284,1.307,4537.3,4537.2,5.11427789]
[1758261728470,1.307,4537.3,4537.2,4.0425]
[1758261730080,2.0151,4537.3,4537.2,3.6034]
[1758261730283,2.0151,4537.3,4537.2,3.8264]
[1758261730476,2.0151,4537.3,4537.2,3.2078]
[1758261730683,2.0151,4537.3,4537.2,3.4308]
[1758261731084,2.0151,4537.3,4537.2,3.6277]
[1758261731581,2.0151,4537.3,4537.2,4.0425]
[1758261731582,1.6074,4537.3,4537.2,4.0425]
[1758261731786,0.3004,4537.3,4537.2,4.0425]
[1758261732175,0.5029,4537.3,4537.2,4.0425]
[1758261732579,0.3004,4537.3,4537.2,4.0425]
[1758261733882,0.1225,4537.5,4537.2,4.43901]
[1758261734185,0.3004,4537.4,4537.3,0.6117]
[1758261734383,0.5029,4537.4,4537.3,0.6117]
[1758261734581,0.7081,4537.4,4537.3,0.3956]
[1758261735084,0.3004,4537.3,4537.2,3.2078]
[1758261735383,0.3004,4537.3,4537.2,3.4308]
[1758261735384,0.7081,4537.3,4537.2,3.4308]
[1758261736683,0.7081,4537.3,4537.2,3.2078]
[1758261736884,0.7081,4537.3,4537.2,3.4308]
[1758261737583,0.7081,4536.8,4536.7,3.6034]
[1758261737786,0.7081,4536.8,4536.7,4.89817789]
[1758261737984,0.7081,4536.8,4536.7,5.11427789]
[1758261738185,0.5029,4536.8,4536.7,5.11427789]
[1758261739180,0.5029,4536.8,4536.7,4.89127789]
[1758261739386,0.5029,4536.8,4536.7,3.2078]
[1758261739387,0.7081,4536.8,4536.7,3.2078]
[1758261739584,0.7081,4536.8,4536.7,3.4308]
[1758261740481,0.7081,4536.8,4536.7,3.2078]
[1758261740688,0.7081,4536.8,4536.5,0.022]
[1758261740882,1.77987789,4536.6,4536.5,0.022]
[1758261741182,0.7081,4536.6,4536.5,0.022]
[1758261742689,0.7081,4536.6,4536.5,0.2189]
[1758261742891,0.7081,4536.6,4536.5,0.4176]
[1758261743189,0.7081,4536.6,4536.5,0.3956]
[1758261743988,0.7081,4536.2,4536.1,3.6034]
[1758261744286,0.5029,4536.2,4536.1,6.69570779]
[1758261744889,0.7081,4536.2,4536.1,6.47960779]
[1758261745687,0.7081,4536.2,4536.1,6.69570779]
[1758261745887,0.5029,4536.2,4536.1,6.69570779]
[1758261746086,0.7081,4536.2,4536.1,6.08400779]
[1758261746785,0.7081,4536.2,4536.1,4.9861299]
[1758261746994,0.8306,4536.0,4535.9,0.022]
[1758261747289,0.8306,4536.0,4535.9,0.2189]
[1758261747985,0.8306,4536.0,4535.9,0.4176]
[1758261748194,0.8306,4536.0,4535.9,1.70577789]
[1758261749090,0.8306,4536.0,4535.9,1.48937789]
[1758261749290,0.5154,4536.5,4535.9,1.31017789]
[1758261749490,0.5154,4536.5,4536.1,3.2078]
[1758261749690,0.5154,4536.5,4536.2,0.223]
[1758261749890,0.3929,4536.3,4536.2,0.223]
[1758261750186,0.7053,4536.3,4536.2,0.223]
[1758261750393,1.77707789,4536.3,4536.2,0.223]
[1758261751390,0.7053,4536.3,4536.2,0.223]
[1758261752991,0.7053,4536.3,4536.2,0.4201]
[1758261753191,0.7053,4536.3,4536.2,0.1971]
[1758261753497,0.7053,4536.3,4536.2,0.4078]
[1758261754599,0.7053,4536.3,4536.1,0.223]
[1758261755799,0.7053,4536.3,4536.2,0.1971]
[1758261756301,0.7053,4536.3,4536.1,0.223]
[1758261758000,0.3929,4536.3,4536.0,3.2078]
[1758261758201,0.3929,4536.2,4536.0,3.2078]
[1758261758393,0.7053,4536.1,4536.0,3.2078]
[1758261759090,0.7053,4536.1,4535.9,0.022]
[1758261759290,1.07177789,4536.2,4535.9,0.022]
[1758261759291,0.8246,4536.0,4535.9,0.022]
[1758261759697,0.8246,4536.0,4535.6,0.223]
[1758261761603,0.8246,4536.0,4535.5,3.2078]
[1758261761906,0.7053,4535.7,4535.6,0.223]
[1758261762202,0.3929,4535.4,4535.3,1.51275819]
[1758261762498,0.7053,4535.4,4535.3,1.73575819]
[1758261762703,0.7053,4535.4,4535.3,1.93285819]
[1758261762899,0.7053,4535.4,4535.3,2.14355819]
[1758261765305,0.7053,4535.4,4535.3,2.35995819]
[1758261766812,0.7053,4535.4,4535.3,2.14355819]
[1758261767415,0.7053,4535.4,4535.3,3.72498809]
[1758261767612,0.3124,4535.4,4535.3,3.94138809]
[1758261767912,0.5122,4536.0,4535.9,0.1971]
[1758261768212,0.5122,4536.0,4535.9,0.4201]
[1758261768505,0.8246,4536.0,4535.9,0.4201]
[1758261769904,0.8246,4536.0,4535.9,0.223]
[1758261773307,0.8246,4536.0,4535.9,0.4201]
[1758261773607,0.8246,4536.0,4535.9,0.6308]
[1758261773911,0.8246,4536.0,4535.9,0.4201]
[1758261774209,0.8246,4536.0,4535.9,0.223]
[1758261774806,0.8246,4536.0,4535.9,0.4201]
[1758261778810,0.8246,4536.0,4535.9,0.223]
[1758261779114,0.8246,4536.0,4535.9,0.4239]
[1758261779711,0.8246,4536.0,4535.9,1.34047662]
[1758261781316,0.8246,4536.0,4535.9,1.13957662]
[1758261781620,0.8246,4536.0,4535.6,1.58290966]
[1758261781913,0.7156,4535.8,4535.7,0.223]
[1758261782311,0.3042,4535.7,4535.6,1.58290966]
[1758261782509,0.7156,4535.7,4535.6,2.72248628]
[1758261783316,0.7156,4535.7,4535.6,2.70038628]
[1758261783614,0.7156,4535.7,4535.6,1.80590966]
[1758261786120,0.7156,4535.7,4535.6,1.58290966]
[1758261786121,2.0993,4535.7,4535.6,1.58290966]
[1758261786311,2.0993,4535.7,4535.6,0.223]
[1758261786716,2.0993,4535.7,4535.6,1.80924829]
[1758261786916,1.7951,4535.7,4535.5,1.58624829]
[1758261787119,0.7156,4535.6,4535.5,1.58624829]
[1758261787816,0.7156,4535.6,4535.5,2.70372491]
[1758261788220,0.7156,4535.6,4535.5,1.11747662]
[1758261788714,0.7156,4535.6,4535.5,1.34047662]
[1758261789115,0.8343,4535.5,4535.4,0.4273]
[1758261789311,0.8343,4535.5,4535.4,1.56687662]
[1758261789513,0.8343,4535.5,4535.4,1.54487662]
[1758261791217,0.8343,4535.5,4535.4,1.76137662]
[1758261791416,1.6879,4535.7,4535.5,0.2165]
[1758261791612,1.6879,4535.7,4535.6,1.76037662]
[1758261791810,1.8857,4535.7,4535.6,1.76037662]
[1758261792016,2.0993,4535.7,4535.6,1.54387662]
[1758261792817,2.0993,4535.7,4535.6,0.222]
[1758261793023,2.0993,4535.7,4535.6,1.80873866]
[1758261793218,2.0993,4535.7,4535.6,2.72531528]
[1758261793921,0.7156,4535.6,4535.5,0.223]
[1758261794315,0.8343,4535.5,4535.4,3.4528]
[1758261795218,0.8343,4535.5,4535.4,3.4308]
[1758261796296,0.7156,4535.4,4535.3,0.4409803]
[1758261796813,0.7156,4535.4,4535.3,0.6418803]
[1758261797020,0.7156,4535.4,4535.3,0.8462803]
[1758261798627,0.7156,4535.4,4535.3,1.76285692]
[1758261800317,0.3042,4535.4,4535.3,1.97935692]
[1758261801221,0.3042,4535.4,4535.3,2.64951896]
[1758261801425,0.3042,4535.4,4535.3,3.56609558]
[1758261801926,1.4711,4535.4,4535.3,3.56609558]
[1758261807724,1.1669,4535.4,4535.3,3.56609558]
[1758261807926,1.4711,4535.4,4535.3,3.56609558]
[1758261809835,1.4711,4535.4,4535.3,1.97935692]
[1758261810136,1.1669,4535.4,4535.3,1.97935692]
[1758261812037,1.1669,4535.4,4535.3,9.09345604]
[1758261812228,1.1669,4535.4,4535.3,6.19984692]
[1758261812531,1.1669,4535.4,4535.3,6.42184692]
[1758261812732,1.8531,4535.4,4535.3,3.05019726]
[1758261812931,1.8531,4535.4,4535.3,3.96677388]
[1758261813133,1.8531,4535.4,4535.3,4.18317388]
[1758261813326,1.6565,4535.4,4535.3,4.18317388]
[1758261814234,1.6565,4535.4,4535.3,2.20125692]
[1758261814438,1.8531,4535.4,4535.3,1.98485692]
[1758261815035,1.8531,4535.4,4535.3,2.20125692]
[1758261815937,1.1669,4535.4,4535.3,2.20125692]
[1758261816237,1.1669,4535.4,4535.3,4.18317388]
[1758261816736,1.4618,4535.4,4535.3,4.18317388]
[1758261817632,1.1669,4535.4,4535.3,4.18317388]
[1758261818735,1.1669,4535.4,4535.3,3.26659726]
[1758261818736,1.6565,4535.4,4535.3,3.26659726]
[1758261819035,1.6565,4535.4,4535.3,2.20125692]
[1758261819635,1.8531,4535.4,4535.3,1.76285692]
[1758261820032,1.8531,4535.4,4535.3,1.98485692]
[1758261820333,1.8531,4535.4,4535.3,1.76285692]
[1758261820639,1.8531,4535.4,4535.3,1.57955692]
[1758261821030,1.8531,4535.4,4535.3,3.16436808]
[1758261821236,1.8531,4535.4,4535.3,2.94236808]
[1758261821437,1.8531,4535.4,4535.3,3.16436808]
[1758261822942,3.1555,4535.4,4535.3,3.16436808]
[1758261823636,3.1555,4535.4,4535.3,1.57955692]
[1758261823842,3.1555,4535.4,4535.3,1.35755692]
[1758261824036,3.1555,4535.4,4535.3,1.57955692]
[1758261829142,3.1555,4535.4,4535.3,1.35755692]
[1758261829343,3.1555,4535.4,4535.3,1.57955692]
[1758261829741,3.1555,4535.4,4535.3,1.35755692]
[1758261829942,3.1555,4535.4,4535.3,1.57955692]
[1758261830441,3.1555,4535.4,4535.3,1.35755692]
[1758261830643,3.1555,4535.4,4535.3,1.57955692]
[1758261833539,3.1555,4535.4,4535.3,1.77455692]
[1758261833752,3.1555,4535.4,4535.3,2.19775692]
[1758261833940,2.7642,4535.4,4535.3,2.19775692]
[1758261839748,2.7642,4535.4,4535.3,2.35358963]
[1758261840249,2.9758,4535.4,4535.3,2.35358963]
[1758261841660,3.1801,4535.4,4535.3,2.13718963]
[1758261841959,2.9758,4535.4,4535.3,2.35348963]
[1758261842357,2.7642,4535.4,4535.3,2.35348963]
[1758261844560,2.9578,4535.4,4535.3,2.35348963]
[1758261845561,2.9578,4535.4,4535.3,2.13148963]
[1758261845759,2.9578,4535.4,4535.3,2.35348963]
[1758261846562,2.4693,4535.4,4535.3,2.35348963]
[1758261847060,2.4693,4535.4,4535.3,4.3347432]
[1758261849363,2.7904,4535.4,4535.3,4.3347432]
[1758261850565,2.984,4535.4,4535.3,4.3347432]
[1758261851459,2.984,4535.4,4535.3,3.8964432]
[1758261851661,3.1883,4535.4,4535.3,4.1184432]
[1758261852661,3.1883,4535.4,4535.3,4.3347432]
[1758261853066,3.1883,4535.4,4535.3,4.1184432]
[1758261853661,3.1883,4535.4,4535.3,4.3347432]
[1758261853662,2.7904,4535.4,4535.3,4.3347432]
[1758261854058,2.4693,4535.4,4535.3,5.40715253]
[1758261854262,2.4693,4535.4,4535.3,7.42589896]
[1758261854462,1.0,4535.5,4535.4,1.00917]
[1758261854662,1.0,4535.5,4535.4,1.22966]
[1758261854966,1.0,4535.5,4535.4,3.782925]
[1758261855167,1.0,4535.5,4535.4,40.382925]
[1758261855371,1.0,4535.5,4535.4,37.82966]
[1758261855862,1.0,4535.5,4535.4,40.382925]
[1758261856459,1.0,4535.5,4535.4,44.382925]
[1758261856660,0.36997647,4535.5,4535.4,41.82966]
[1758261856969,0.1936,4536.5,4536.4,0.6928]
[1758261857266,0.1936,4536.5,4536.4,5.19500933]
[1758261857669,1.7731,4536.9,4536.8,0.6928]
[1758261857969,1.7731,4536.9,4536.8,1.98720933]
[1758261858773,2.0942,4536.9,4536.8,1.98720933]
[1758261859276,2.0942,4536.9,4536.8,0.222]
[1758261859774,2.0942,4536.9,4536.8,0.9148]
[1758261860571,0.719,4536.9,4536.8,0.9148]
[1758261863468,0.719,4536.9,4536.8,0.222]
[1758261864473,0.719,4536.9,4536.8,0.4167]
[1758261864663,0.719,4536.9,4536.8,0.7133]
[1758261865675,0.719,4536.9,4536.8,1.78570933]
[1758261866579,0.5147,4536.9,4536.8,1.98720933]
[1758261867075,0.719,4536.9,4536.8,1.98720933]
[1758261869374,0.5147,4536.9,4536.8,1.98720933]
[1758261869571,3.0691,4537.3,4537.2,0.7308]
[1758261869777,0.5081,4537.3,4537.2,4.1606]
[1758261869975,0.5081,4537.3,4537.2,5.23300933]
[1758261874984,2.5222,4537.6,4537.5,0.5399]
[1758261875177,1.0032,4537.6,4537.5,2.15090933]
[1758261875773,1.306,4537.6,4537.5,2.15090933]
[1758261875972,0.7198,4537.6,4537.5,2.02520933]
[1758261877784,0.7198,4537.6,4537.5,1.80320933]
[1758261877984,0.7198,4537.6,4537.5,2.02520933]
[1758261880886,2.4171,4537.9,4537.5,2.02520933]
[1758261881087,0.7198,4537.7,4537.6,0.5283]
[1758261881287,0.7198,4537.7,4537.6,1.80320933]
[1758261881489,0.7198,4537.7,4537.6,2.02520933]
[1758261884586,0.7198,4537.7,4537.6,1.80320933]
[1758261884787,0.7198,4537.7,4537.6,2.02520933]
[1758261885580,0.7198,4537.7,4537.6,1.80320933]
[1758261885884,0.7198,4537.7,4537.6,0.222]
[1758261886587,0.543,4537.5,4537.4,1.58275469]
[1758261886788,0.8458,4537.5,4537.4,1.82675469]
[1758261886993,0.8458,4537.5,4537.4,0.244]
[1758261887385,5.06619,4537.5,4537.4,0.244]
[1758261887690,4.8458,4537.5,4537.4,0.022]
[1758261887879,4.8458,4537.5,4537.4,0.244]
[1758261890289,4.8458,4537.5,4537.4,0.222]
[1758261890692,4.543,4537.5,4537.4,0.222]
[1758261891285,4.8458,4537.5,4537.4,0.222]
[1758261892894,4.543,4537.5,4537.4,0.222]
[1758261893288,4.8458,4537.5,4537.4,0.222]
[1758261893792,4.8458,4537.5,4537.2,4.79055469]
[1758261893793,0.417,4537.3,4537.2,6.07466402]
[1758261893988,0.7198,4537.3,4537.2,6.29666402]
[1758261894193,0.7198,4537.3,4537.2,6.31866402]